[Event "4th Sabbiadoro-Master 2018"]
[Site "Lignano Sabbiadoro"]
[Date "2018.07.29"]
[Round "1.2"]
[White "Brankovic, Dejan"]
[Black "Tiraboschi, Nicolo`"]
[Result "1-0"]
[ECO "A08"]
[WhiteElo "2377"]
[BlackElo "2102"]
[Annotator "NA"]
[PlyCount "91"]
[EventDate "2018.07.29"]
[EventType "swiss"]
[EventCountry "ITA"]
[SourceTitle "playchess.com"]
[Source "ChessBase"]
[SourceQuality "1"]
[TimeControl "5400+30"]

1. Nf3 {[%emt 0:00:30]} d5 {[%emt 0:01:00]} 2. g3 {[%emt 0:00:00]} c5 {[%emt 0:00:30]} 3. Bg2 {[%emt 0:00:00]} Nc6 {[%emt 0:00:30]} 4. O-O {[%emt 0:01:30]} e5 {[%emt 0:00:00]} 5. d3 {[%emt 0:00:00]} Nf6 {[%emt 0:01:00]} 6. e4 {[%emt 0:01:00]} d4 {[%emt 0:02:30]} 7. a4 {[%emt 0:00:30]} h6 {[%emt 0:01:30]} 8. Na3 {[%emt 0:01:30]} Be7 {[%emt 0:00:30]} 9. Nc4 {[%emt 0:10:30]} Qc7 {[%emt 0:00:30]} 10. Nh4 {[%emt 0:00:30]} O-O {[%emt 0:08:30]} 11. f4 {[%emt 0:11:30]} Bg4 {[%emt 0:06:30]} 12. Nf3 {[%emt 0:08:30]} Nd7 {[%emt 0:01:30]} 13. h3 {[%emt 0:05:30]} Bxf3 {[%emt 0:00:30]} 14. Qxf3 {[%emt 0:00:30]} b6 {[%emt 0:03:30]} 15. h4 {[%emt 0:09:30]} Bf6 {[%emt 0:11:30]} 16. Bh3 {[%emt 0:02:30]} Rfe8 {[%emt 0:03:30]} 17. Bd2 {[%emt 0:00:30]} Rad8 {[%emt 0:00:30]} 18. Rf2 {[%emt 0:03:30]} a6 {[%emt 0:09:30]} 19. a5 {[%emt 0:04:30]} bxa5 {[%emt 0:10:30]} 20. Bxd7 {[%emt 0:01:30]} Rxd7 {[%emt 0:00:30]} 21. h5 {[%emt 0:03:30]} Rb8 {[%emt 0:02:30]} 22. b3 {[%emt 0:01:30]} Kh8 {[%emt 0:02:30]} 23. Bxa5 {[%emt 0:01:30]} Qa7 {[%emt 0:03:30]} 24. Qg4 {[%emt 0:00:30]} Re7 {[%emt 0:02:30]} 25. Raf1 {[%emt 0:05:30]} Nxa5 {[%emt 0:06:30]} 26. Nxa5 {[%emt 0:00:00]} Qc7 {[%emt 0:00:30]} 27. Nc4 {[%emt 0:00:00]} Rf8 {[%emt 0:01:30]} 28. Kg2 {[%emt 0:01:30]} Kg8 {[%emt 0:00:30]} 29. Ra1 {[%emt 0:00:00]} Ra8 {[%emt 0:00:38]} 30. Ra5 {[%emt 0:01:00]} Re6 {[%emt 0:01:32]} 31. Ra1 {[%emt 0:03:30]} Rf8 {[%emt 0:06:36]} 32. Raf1 {[%emt 0:01:30]} Re7 {[%emt 0:02:18]} 33. Ra1 {[%emt 0:00:00]} Ra8 {[%emt 0:01:24]} 34. Raf1 {[%emt 0:04:24]} Rf8 {[%emt 0:00:53]} 35. fxe5 {[%emt 0:00:04]} Bxe5 {[%emt 0:01:45]} 36. Rf5 {[%emt 0:00:09]} Rfe8 {[%emt 0:02:08]} 37. Ra1 {[%emt 0:03:50]} Qb7 {[%emt 0:04:29]} 38. Ra5 {[%emt 0:01:41]} Qb4 {[%emt 0:02:23]} 39. Rxa6 {[%emt 0:01:04]} Qc3 {[%emt 0:00:05]} 40. Rf2 {[%emt 0:02:15]} Kh8 {[%emt 0:00:39]} 41. Rc6 {[%emt 0:01:02]} Ra8 {[%emt 0:01:02]} 42. Rc8+ {[%emt 0:00:12]} Rxc8 {[%emt 0:00:23]} 43. Qxc8+ {[%emt 0:00:07]} Kh7 {[%emt 0:00:03]} 44. Qf5+ {[%emt 0:01:04]} g6 {[%emt 0:00:05]} 45. hxg6+ {[%emt 0:00:13]} fxg6 {[%emt 0:00:06]} 46. Qf8 {[%emt 0:00:12]} 1-0

[Event "4th Sabbiadoro-Master 2018"]
[Site "Lignano Sabbiadoro"]
[Date "2018.07.29"]
[Round "1.3"]
[White "Sponchiado, Dario"]
[Black "Ristic, Nenad"]
[Result "0-1"]
[ECO "A37"]
[WhiteElo "2059"]
[BlackElo "2356"]
[Annotator "NA"]
[PlyCount "50"]
[EventDate "2018.07.29"]
[EventType "swiss"]
[EventCountry "ITA"]
[SourceTitle "playchess.com"]
[Source "ChessBase"]
[SourceQuality "1"]
[TimeControl "5400+30"]

1. Nf3 {[%emt 0:00:30]} g6 {[%emt 0:01:00]} 2. g3 {[%emt 0:00:30]} Bg7 {[%emt 0:00:00]} 3. Bg2 {[%emt 0:00:30]} c5 {[%emt 0:00:00]} 4. O-O {[%emt 0:01:30]} Nc6 {[%emt 0:00:30]} 5. c4 {[%emt 0:04:30]} Nh6 {[%emt 0:03:30]} 6. Nc3 {[%emt 0:04:30]} Nf5 {[%emt 0:00:30]} 7. b3 {[%emt 0:02:30]} h5 {[%emt 0:00:30]} 8. h4 {[%emt 0:01:30]} a6 {[%emt 0:01:30]} 9. Bb2 {[%emt 0:05:30]} b5 {[%emt 0:00:30]} 10. Rb1 {[%emt 0:00:30]} Rb8 {[%emt 0:00:30]} 11. d3 {[%emt 0:10:30]} d6 {[%emt 0:01:30]} 12. e3 {[%emt 0:06:30]} Bd7 {[%emt 0:01:30]} 13. Qe2 {[%emt 0:04:30]} O-O {[%emt 0:01:30]} 14. Nd5 {[%emt 0:06:30]} e5 {[%emt 0:02:30]} 15. Ng5 {[%emt 0:10:30]} Re8 {[%emt 0:06:30]} 16. Rfc1 {[%emt 0:04:30]} Nce7 {[%emt 0:02:30]} 17. e4 {[%emt 0:10:30]} Nh6 {[%emt 0:07:30]} 18. Ne3 {[%emt 0:06:24]} Nc6 {[%emt 0:00:30]} 19. Rf1 {[%emt 0:03:27]} Nd4 {[%emt 0:01:30]} 20. Bxd4 {[%emt 0:01:31]} exd4 {[%emt 0:01:30]} 21. Nd5 {[%emt 0:03:08]} Bg4 {[%emt 0:02:30]} 22. Qd2 {[%emt 0:01:57]} Bd7 {[%emt 0:05:30]} 23. Nh3 {[%emt 0:01:06]} Ng4 {[%emt 0:00:30]} 24. Qg5 {[%emt 0:04:33]} Ne5 {[%emt 0:05:30]} 25. Qd2 {[%emt 0:00:52]} Bxh3 {[%emt 0:00:00]} 0-1

[Event "4th Sabbiadoro-Master 2018"]
[Site "Lignano Sabbiadoro"]
[Date "2018.07.29"]
[Round "1.4"]
[White "Damia, Angelo"]
[Black "De Vita, Gianni"]
[Result "1-0"]
[ECO "C47"]
[WhiteElo "2313"]
[BlackElo "2052"]
[Annotator "NA"]
[PlyCount "64"]
[EventDate "2018.07.29"]
[EventType "swiss"]
[EventCountry "ITA"]
[SourceTitle "playchess.com"]
[Source "ChessBase"]
[SourceQuality "1"]
[TimeControl "5400+30"]

1. e4 e5 2. Nc3 Nf6 3. Nf3 Nc6 4. a3 {[%emt 0:02:00]} g6 {[%emt 0:06:30]} 5. Nxe5 {[%emt 0:00:30]} Nxe5 {[%emt 0:00:30]} 6. d4 {[%emt 0:00:30]} Nc6 {[%emt 0:02:30]} 7. d5 {[%emt 0:00:00]} Nb8 {[%emt 0:03:30]} 8. e5 {[%emt 0:00:00]} Qe7 {[%emt 0:03:30]} 9. Qe2 {[%emt 0:00:30]} Ng4 {[%emt 0:12:30]} 10. Qxg4 {[%emt 0:01:30]} Qxe5+ {[%emt 0:00:30]} 11. Be2 {[%emt 0:01:30]} f5 {[%emt 0:07:30]} 12. Qa4 {[%emt 0:01:30]} Bg7 {[%emt 0:10:30]} 13. Bf4 {[%emt 0:01:30]} Qe7 {[%emt 0:01:30]} 14. Bxc7 {[%emt 0:05:30]} Na6 {[%emt 0:00:30]} 15. d6 {[%emt 0:02:30]} Qe5 {[%emt 0:09:30]} 16. Qc4 {[%emt 0:03:30]} b5 {[%emt 0:03:30]} 17. Qxb5 {[%emt 0:03:30]} Nc5 {[%emt 0:04:30]} 18. O-O {[%emt 0:02:30]} Ba6 {[%emt 0:01:30]} 19. Qa5 {[%emt 0:01:30]} Bxe2 {[%emt 0:06:30]} 20. Rfe1 {[%emt 0:01:30]} Ne6 {[%emt 0:02:30]} 21. Qxe5 {[%emt 0:03:30]} Bxe5 {[%emt 0:00:30]} 22. Ba5 {[%emt 0:08:30]} Bxd6 {[%emt 0:07:52]} 23. Rxe2 {[%emt 0:00:30]} Rc8 {[%emt 0:01:00]} 24. Rd1 {[%emt 0:01:30]} Bc7 {[%emt 0:04:09]} 25. Bxc7 {[%emt 0:01:30]} Rxc7 {[%emt 0:00:30]} 26. Nb5 {[%emt 0:08:30]} Rc8 {[%emt 0:05:45]} 27. Rd5 {[%emt 0:00:30]} Kf7 {[%emt 0:00:43]} 28. b4 {[%emt 0:00:30]} Kf6 {[%emt 0:01:43]} 29. g3 {[%emt 0:00:30]} Rb8 {[%emt 0:00:36]} 30. c4 {[%emt 0:00:30]} Rhc8 {[%emt 0:00:52]} 31. Kg2 {[%emt 0:00:30]} Rxc4 {[%emt 0:00:38]} 32. Kg1 {[%emt 0:00:30]} Kg5 {[%emt 0:04:42]} 1-0

[Event "4th Sabbiadoro-Master 2018"]
[Site "Lignano Sabbiadoro"]
[Date "2018.07.29"]
[Round "1.5"]
[White "Grochowalski, Pawel"]
[Black "Nester, Ihor"]
[Result "0-1"]
[ECO "A80"]
[WhiteElo "2049"]
[BlackElo "2305"]
[Annotator "NA"]
[PlyCount "81"]
[EventDate "2018.07.29"]
[EventType "swiss"]
[EventCountry "ITA"]
[SourceTitle "playchess.com"]
[Source "ChessBase"]
[SourceQuality "1"]
[TimeControl "5400+30"]

1. d4 {[%emt 0:00:30]} f5 {[%emt 0:01:00]} 2. Nc3 {[%emt 0:00:00]} Nf6 {[%emt 0:00:00]} 3. Bg5 {[%emt 0:00:00]} d5 {[%emt 0:00:00]} 4. Bxf6 {[%emt 0:00:30]} exf6 {[%emt 0:00:30]} 5. e3 {[%emt 0:00:30]} Be6 {[%emt 0:00:00]} 6. Bd3 {[%emt 0:00:00]} Qd7 {[%emt 0:00:00]} 7. Nce2 {[%emt 0:01:00]} Nc6 {[%emt 0:00:30]} 8. c3 {[%emt 0:00:00]} Ne7 {[%emt 0:02:30]} 9. h4 {[%emt 0:05:00]} Nc8 {[%emt 0:00:30]} 10. Nf4 {[%emt 0:01:30]} Bf7 {[%emt 0:00:30]} 11. Qc2 {[%emt 0:01:30]} Nd6 {[%emt 0:00:30]} 12. Nf3 {[%emt 0:10:30]} g6 {[%emt 0:15:30]} 13. Nd2 {[%emt 0:11:30]} Bh6 {[%emt 0:14:30]} 14. g3 {[%emt 0:05:30]} O-O {[%emt 0:00:30]} 15. O-O {[%emt 0:08:30]} g5 {[%emt 0:03:30]} 16. Ng2 {[%emt 0:00:30]} Kh8 {[%emt 0:03:30]} 17. hxg5 {[%emt 0:10:30]} fxg5 {[%emt 0:00:00]} 18. f3 {[%emt 0:00:30]} Bg6 {[%emt 0:19:00]} 19. Rae1 {[%emt 0:21:30]} Rae8 {[%emt 0:02:30]} 20. f4 {[%emt 0:02:22]} Ne4 {[%emt 0:01:30]} 21. Kh2 {[%emt 0:03:36]} Bh5 {[%emt 0:01:30]} 22. Nxe4 {[%emt 0:03:27]} fxe4 {[%emt 0:00:30]} 23. Be2 {[%emt 0:00:05]} Bg6 {[%emt 0:12:30]} 24. Qd1 {[%emt 0:00:17]} gxf4 {[%emt 0:00:30]} 25. exf4 {[%emt 0:01:46]} Qd6 {[%emt 0:02:15]} 26. Bg4 {[%emt 0:05:23]} Rg8 {[%emt 0:00:55]} 27. Ne3 {[%emt 0:00:16]} Ref8 {[%emt 0:00:35]} 28. Kg2 {[%emt 0:01:55]} c6 {[%emt 0:02:31]} 29. Qe2 {[%emt 0:00:32]} b5 {[%emt 0:04:38]} 30. b4 {[%emt 0:00:48]} a5 {[%emt 0:00:14]} 31. a3 {[%emt 0:00:02]} Rf6 {[%emt 0:01:31]} 32. Rh1 {[%emt 0:00:52]} Bf8 {[%emt 0:01:12]} 33. Rh3 {[%emt 0:00:36]} h6 {[%emt 0:01:50]} 34. Reh1 {[%emt 0:02:17]} Bh7 {[%emt 0:00:17]} 35. Kf2 {[%emt 0:00:59]} Rf7 {[%emt 0:01:11]} 36. Ke1 {[%emt 0:00:56]} Ra7 {[%emt 0:01:51]} 37. Bf5 {[%emt 0:00:47]} axb4 {[%emt 0:02:18]} 38. Bxh7 {[%emt 0:00:21]} Rxh7 {[%emt 0:00:05]} 39. axb4 {[%emt 0:00:10]} Qd7 {[%emt 0:01:59]} 40. Kf2 {[%emt 0:01:24]} Qe6 {[%emt 0:01:06]} 41. Qh5 {[%emt 0:00:25]} 0-1

[Event "4th Sabbiadoro-Master 2018"]
[Site "Lignano Sabbiadoro"]
[Date "2018.07.29"]
[Round "1.6"]
[White "Mufic, Goran"]
[Black "Ridolfo, Enrico"]
[Result "1-0"]
[ECO "A80"]
[WhiteElo "2299"]
[BlackElo "2047"]
[Annotator "NA"]
[PlyCount "67"]
[EventDate "2018.07.29"]
[EventType "swiss"]
[EventCountry "ITA"]
[SourceTitle "playchess.com"]
[Source "ChessBase"]
[SourceQuality "1"]
[TimeControl "5400+30"]

1. d4 {[%emt 0:00:30]} f5 {[%emt 0:01:00]} 2. Bg5 {[%emt 0:01:30]} g6 {[%emt 0:00:30]} 3. e3 {[%emt 0:02:30]} Bg7 {[%emt 0:00:30]} 4. h4 {[%emt 0:01:30]} d6 {[%emt 0:03:30]} 5. c3 {[%emt 0:05:30]} Nc6 {[%emt 0:07:30]} 6. Qb3 {[%emt 0:08:30]} Nf6 {[%emt 0:15:30]} 7. Bc4 {[%emt 0:04:30]} Na5 {[%emt 0:04:30]} 8. Qa4+ {[%emt 0:00:30]} c6 {[%emt 0:00:30]} 9. Be2 {[%emt 0:00:30]} b5 {[%emt 0:05:30]} 10. Qc2 {[%emt 0:00:30]} Be6 {[%emt 0:01:30]} 11. Nd2 {[%emt 0:01:30]} h6 {[%emt 0:05:30]} 12. Bf4 {[%emt 0:02:30]} O-O {[%emt 0:03:30]} 13. a4 {[%emt 0:01:30]} Nc4 {[%emt 0:08:30]} 14. axb5 {[%emt 0:03:30]} cxb5 {[%emt 0:00:30]} 15. Ngf3 {[%emt 0:01:30]} Qc7 {[%emt 0:08:30]} 16. O-O {[%emt 0:01:30]} Rac8 {[%emt 0:03:30]} 17. Ra6 {[%emt 0:03:30]} Nd5 {[%emt 0:06:30]} 18. Rfa1 {[%emt 0:00:30]} Ra8 {[%emt 0:00:30]} 19. Bh2 {[%emt 0:03:30]} Bc8 {[%emt 0:04:14]} 20. R6a2 {[%emt 0:00:30]} a6 {[%emt 0:00:44]} 21. Nxc4 {[%emt 0:06:30]} bxc4 {[%emt 0:00:53]} 22. Nd2 {[%emt 0:00:30]} Nb6 {[%emt 0:01:14]} 23. b3 {[%emt 0:01:30]} cxb3 {[%emt 0:01:12]} 24. Qxb3+ {[%emt 0:00:00]} Kh7 {[%emt 0:00:44]} 25. Bxa6 {[%emt 0:07:00]} Rb8 {[%emt 0:03:55]} 26. Bxc8 {[%emt 0:02:30]} Rfxc8 {[%emt 0:00:33]} 27. Ra7 {[%emt 0:00:30]} Qxc3 {[%emt 0:02:10]} 28. Qxc3 {[%emt 0:00:30]} Rxc3 {[%emt 0:00:05]} 29. Rxe7 {[%emt 0:00:30]} Nd5 {[%emt 0:00:20]} 30. Rd7 {[%emt 0:00:30]} Rb2 {[%emt 0:05:14]} 31. Raa7 {[%emt 0:01:30]} Rb1+ {[%emt 0:03:17]} 32. Nf1 {[%emt 0:00:30]} Rcc1 {[%emt 0:00:06]} 33. Rxg7+ {[%emt 0:00:00]} Kh8 {[%emt 0:00:04]} 34. Rh7+ {[%emt 0:00:00]} 1-0

[Event "4th Sabbiadoro-Master 2018"]
[Site "Lignano Sabbiadoro"]
[Date "2018.07.29"]
[Round "1.7"]
[White "Barberi, Alessandro"]
[Black "Medici, Simone"]
[Result "0-1"]
[ECO "D02"]
[WhiteElo "2044"]
[BlackElo "2286"]
[Annotator "NA"]
[PlyCount "152"]
[EventDate "2018.07.29"]
[EventType "swiss"]
[EventCountry "ITA"]
[SourceTitle "playchess.com"]
[Source "ChessBase"]
[SourceQuality "1"]
[TimeControl "5400+30"]

1. d4 d5 2. Nf3 c6 3. e3 Bf5 4. Be2 e6 5. O-O {[%emt 0:02:30]} Nd7 {[%emt 0:06:00]} 6. b3 {[%emt 0:00:30]} Ngf6 {[%emt 0:04:30]} 7. Bb2 {[%emt 0:00:00]} Bd6 {[%emt 0:05:30]} 8. Nbd2 {[%emt 0:00:00]} Qc7 {[%emt 0:02:30]} 9. c4 {[%emt 0:00:30]} O-O {[%emt 0:01:30]} 10. c5 {[%emt 0:03:30]} Be7 {[%emt 0:00:30]} 11. b4 {[%emt 0:07:30]} Ne4 {[%emt 0:05:30]} 12. Nxe4 {[%emt 0:04:30]} Bxe4 {[%emt 0:01:30]} 13. Ne5 {[%emt 0:00:30]} Nxe5 {[%emt 0:05:30]} 14. dxe5 {[%emt 0:02:30]} b6 {[%emt 0:06:30]} 15. Bd4 {[%emt 0:12:30]} bxc5 {[%emt 0:02:30]} 16. bxc5 {[%emt 0:00:30]} Qa5 {[%emt 0:01:30]} 17. Qc1 {[%emt 0:01:30]} Rab8 {[%emt 0:04:30]} 18. f3 {[%emt 0:04:30]} Bg6 {[%emt 0:01:30]} 19. Qe1 {[%emt 0:09:30]} Qb4 {[%emt 0:16:30]} 20. Qxb4 {[%emt 0:04:30]} Rxb4 {[%emt 0:00:30]} 21. Rfc1 {[%emt 0:21:30]} Rfb8 {[%emt 0:01:30]} 22. Kf1 {[%emt 0:01:30]} Bg5 {[%emt 0:02:30]} 23. Rc3 {[%emt 0:00:30]} Ra4 {[%emt 0:30:53]} 24. Bd1 {[%emt 0:02:30]} Rab4 {[%emt 0:00:35]} 25. Be2 {[%emt 0:00:30]} Bd8 {[%emt 0:00:30]} 26. Ra3 {[%emt 0:01:30]} a5 {[%emt 0:00:30]} 27. Bc3 {[%emt 0:00:30]} Rh4 {[%emt 0:00:29]} 28. h3 {[%emt 0:01:37]} Ra8 {[%emt 0:00:31]} 29. f4 {[%emt 0:01:26]} f6 {[%emt 0:00:29]} 30. Rc1 {[%emt 0:02:20]} Be4 {[%emt 0:00:25]} 31. Rb3 {[%emt 0:00:29]} g5 {[%emt 0:00:30]} 32. exf6 {[%emt 0:01:11]} gxf4 {[%emt 0:00:21]} 33. Rb7 {[%emt 0:01:05]} fxe3 {[%emt 0:00:35]} 34. Bg4 {[%emt 0:01:47]} Bf5 {[%emt 0:00:29]} 35. Be5 {[%emt 0:00:45]} Bxf6 {[%emt 0:00:41]} 36. Bxf6 {[%emt 0:00:09]} Rh6 {[%emt 0:00:29]} 37. Bg5 {[%emt 0:01:00]} Rg6 {[%emt 0:00:31]} 38. Bxf5 {[%emt 0:00:16]} Rf8 {[%emt 0:00:31]} 39. Bxe3 {[%emt 0:00:22]} Rxf5+ {[%emt 0:00:25]} 40. Kg1 {[%emt 0:00:37]} Rg3 {[%emt 0:00:12]} 41. Bf2 {[%emt 0:00:29]} Ra3 {[%emt 0:00:09]} 42. Rc2 {[%emt 0:00:28]} e5 {[%emt 0:00:09]} 43. Rc7 {[%emt 0:00:42]} Rf6 {[%emt 0:00:35]} 44. Rb2 {[%emt 0:00:19]} d4 {[%emt 0:01:25]} 45. Re7 {[%emt 0:02:54]} d3 {[%emt 0:00:34]} 46. Rxe5 {[%emt 0:00:14]} Rc3 {[%emt 0:00:29]} 47. Rd2 {[%emt 0:00:49]} Rc1+ {[%emt 0:00:32]} 48. Kh2 {[%emt 0:00:28]} Rc2 {[%emt 0:00:27]} 49. Be3 {[%emt 0:02:17]} Rxd2 {[%emt 0:00:13]} 50. Bxd2 {[%emt 0:00:11]} Rf2 {[%emt 0:00:04]} 51. Bxa5 {[%emt 0:00:15]} Rxa2 {[%emt 0:00:20]} 52. Bb4 {[%emt 0:00:21]} Rb2 {[%emt 0:00:56]} 53. Ba5 {[%emt 0:02:25]} Rb5 {[%emt 0:00:53]} 54. Bb6 {[%emt 0:00:36]} Kf7 {[%emt 0:00:35]} 55. Re4 {[%emt 0:00:32]} Rb3 {[%emt 0:00:32]} 56. Rd4 {[%emt 0:00:09]} Ke6 {[%emt 0:00:29]} 57. Bc7 {[%emt 0:00:20]} Rc3 {[%emt 0:00:30]} 58. Bd6 {[%emt 0:00:08]} Kf5 {[%emt 0:00:25]} 59. g4+ {[%emt 0:00:54]} Ke6 {[%emt 0:00:18]} 60. h4 {[%emt 0:01:11]} Rc2+ {[%emt 0:00:43]} 61. Kg3 {[%emt 0:00:08]} d2 {[%emt 0:00:32]} 62. Rd3 {[%emt 0:00:22]} Rc3 {[%emt 0:00:19]} 63. Rxc3 {[%emt 0:00:08]} d1=Q {[%emt 0:00:05]} 64. Re3+ {[%emt 0:00:09]} Kd5 {[%emt 0:00:18]} 65. Re5+ {[%emt 0:00:11]} Kd4 {[%emt 0:00:22]} 66. Rf5 {[%emt 0:00:22]} Qg1+ {[%emt 0:00:23]} 67. Kh3 {[%emt 0:00:05]} Qe3+ {[%emt 0:00:42]} 68. Kg2 {[%emt 0:00:57]} Qe4+ {[%emt 0:00:45]} 69. Kg3 {[%emt 0:00:06]} Qe8 {[%emt 0:01:02]} 70. h5 {[%emt 0:00:12]} Qe1+ {[%emt 0:00:25]} 71. Kf3 {[%emt 0:00:43]} Qh4 {[%emt 0:00:38]} 72. Rf4+ {[%emt 0:00:22]} Kd5 {[%emt 0:00:25]} 73. Rf5+ {[%emt 0:00:06]} Kd4 {[%emt 0:00:38]} 74. Rf4+ {[%emt 0:00:12]} Kd3 {[%emt 0:00:06]} 75. Rf5 {[%emt 0:00:32]} Qh3+ {[%emt 0:00:15]} 76. Kf4 {[%emt 0:00:07]} Qe3# {[%emt 0:00:06]} 0-1

[Event "4th Sabbiadoro-Master 2018"]
[Site "Lignano Sabbiadoro"]
[Date "2018.07.29"]
[Round "1.8"]
[White "Micottis, Dorian"]
[Black "Prete, Alessandro"]
[Result "1/2-1/2"]
[ECO "C17"]
[WhiteElo "2279"]
[BlackElo "2032"]
[Annotator "NA"]
[PlyCount "88"]
[EventDate "2018.07.29"]
[EventType "swiss"]
[EventCountry "ITA"]
[SourceTitle "playchess.com"]
[Source "ChessBase"]
[SourceQuality "1"]
[TimeControl "5400+30"]

1. e4 e6 2. d4 d5 3. Nc3 Bb4 4. e5 c5 5. Bd2 Nh6 6. a3 Bxc3 7. Bxc3 cxd4 8. Qxd4 O-O 9. Nf3 Nc6 10. Qf4 Qc7 11. Bd3 f5 12. O-O Nf7 13. Rfe1 Qe7 14. h4 Bd7 15. b4 a6 16. a4 Rfc8 17. Bd2 Qe8 18. g4 fxg4 19. Qxg4 Kh8 20. Kh2 Nh6 21. Qg3 Ne7 22. Bxh6 gxh6 23. Qf4 Qf8 24. Qf6+ Qxf6 25. exf6 Ng8 26. f7 Nf6 27. Ne5 Rf8 28. c4 Rad8 29. c5 Bc8 30. Be2 Nd7 31. Nxd7 Bxd7 32. Bh5 Kg7 33. f4 Kf6 34. Re5 Rc8 35. Rae1 a5 36. f5 exf5 37. Rxd5 Bxa4 38. Rd6+ Kg7 39. Rg1+ Kh8 40. Rxh6 axb4 41. Rb6 Rxc5 42. Rxb7 Rb5 43. Rxb5 Bxb5 44. Rb1 Bc4 1/2-1/2

[Event "4th Sabbiadoro-Master 2018"]
[Site "Lignano Sabbiadoro"]
[Date "2018.07.29"]
[Round "1.9"]
[White "Beltrame, Leonardo"]
[Black "Calavalle, Giulio"]
[Result "0-1"]
[ECO "A30"]
[WhiteElo "2013"]
[BlackElo "2275"]
[Annotator "NA"]
[PlyCount "52"]
[EventDate "2018.07.29"]
[EventType "swiss"]
[EventCountry "ITA"]
[SourceTitle "playchess.com"]
[Source "ChessBase"]
[SourceQuality "1"]
[TimeControl "5400+30"]

1. Nf3 Nf6 2. g3 c5 3. Bg2 Nc6 4. O-O e5 5. d3 Be7 6. c4 d5 7. cxd5 Nxd5 8. Nc3 Be6 9. Nxd5 Bxd5 10. Be3 O-O 11. Rc1 b6 12. Ne1 Rc8 13. f4 Bf6 14. b3 Nb4 15. Qd2 Re8 16. fxe5 Bxe5 17. Nf3 Bf6 18. Bf4 Bxf3 19. Bxf3 g5 20. Bb7 gxf4 21. Rxf4 Bd4+ 22. Kg2 Rc7 23. Rg4+ Kh8 24. Be4 f5 25. Bxf5 Nd5 26. Kh1 Qf6 0-1

[Event "4th Sabbiadoro-Master 2018"]
[Site "Lignano Sabbiadoro"]
[Date "2018.07.29"]
[Round "1.10"]
[White "Bentivegna, Francesco"]
[Black "D Alfonso, Nicola"]
[Result "1-0"]
[ECO "B01"]
[WhiteElo "2271"]
[BlackElo "2011"]
[Annotator "NA"]
[PlyCount "67"]
[EventDate "2018.07.29"]
[EventType "swiss"]
[EventCountry "ITA"]
[SourceTitle "playchess.com"]
[Source "ChessBase"]
[SourceQuality "1"]
[TimeControl "5400+30"]

1. e4 {[%emt 0:20:30]} d5 {[%emt 0:01:00]} 2. exd5 {[%emt 0:00:00]} Qxd5 {[%emt 0:00:00]} 3. Nc3 {[%emt 0:00:00]} Qa5 {[%emt 0:00:00]} 4. Bc4 {[%emt 0:01:30]} Nf6 {[%emt 0:00:30]} 5. d3 {[%emt 0:00:30]} c6 {[%emt 0:03:30]} 6. Bd2 {[%emt 0:00:30]} Qc7 {[%emt 0:04:30]} 7. Qe2 {[%emt 0:03:30]} Bf5 {[%emt 0:00:30]} 8. h3 {[%emt 0:00:30]} Bg6 {[%emt 0:00:00]} 9. f4 {[%emt 0:04:30]} e6 {[%emt 0:23:00]} 10. g4 {[%emt 0:00:00]} Be7 {[%emt 0:00:30]} 11. Nf3 {[%emt 0:01:00]} O-O {[%emt 0:06:30]} 12. O-O-O {[%emt 0:05:30]} Bd6 {[%emt 0:04:30]} 13. Ne5 {[%emt 0:01:30]} b5 {[%emt 0:10:30]} 14. Bb3 {[%emt 0:00:30]} a5 {[%emt 0:09:30]} 15. a4 {[%emt 0:00:30]} b4 {[%emt 0:00:30]} 16. Nb1 {[%emt 0:02:30]} Bxe5 {[%emt 0:02:30]} 17. fxe5 {[%emt 0:00:30]} Nd5 {[%emt 0:00:30]} 18. h4 {[%emt 0:00:30]} h5 {[%emt 0:04:30]} 19. gxh5 {[%emt 0:02:30]} Bf5 {[%emt 0:00:30]} 20. Rhg1 {[%emt 0:03:30]} Kh7 {[%emt 0:02:30]} 21. d4 {[%emt 0:21:30]} Nd7 {[%emt 0:07:31]} 22. Rdf1 {[%emt 0:03:30]} N7b6 {[%emt 0:04:30]} 23. Be3 {[%emt 0:14:32]} Nxe3 {[%emt 0:05:26]} 24. Qxe3 {[%emt 0:00:00]} Nd5 {[%emt 0:00:10]} 25. Qg3 {[%emt 0:00:42]} Rg8 {[%emt 0:00:15]} 26. Nd2 {[%emt 0:00:09]} Rad8 {[%emt 0:01:11]} 27. Qf2 {[%emt 0:01:20]} c5 {[%emt 0:00:28]} 28. dxc5 {[%emt 0:00:30]} Qxe5 {[%emt 0:00:13]} 29. Nc4 {[%emt 0:00:52]} Qf6 {[%emt 0:08:29]} 30. Nxa5 {[%emt 0:00:07]} Qh6+ {[%emt 0:00:10]} 31. Kb1 {[%emt 0:00:23]} Qxh5 {[%emt 0:00:50]} 32. Nb7 {[%emt 0:01:11]} Rb8 {[%emt 0:01:04]} 33. Bxd5 {[%emt 0:00:36]} exd5 {[%emt 0:00:02]} 34. Rg5 {[%emt 0:00:06]} 1-0